[Event "NK ABC Kwalificatie 2"]
[Site "Zoetermeer, Netherlands"]
[Date "2025.01.04"]
[Round "3.2"]
[White "Kumar, Prajit Sai"]
[Black "Kleibeuker, Mika"]
[Result "0-1"]
[TimeControl "55+10"]
[WhiteFideId "8767979"]
[BlackFideId "8577228"]
[WhiteElo "2210"]
[BlackElo "1980"]

1. e4 {[%clk 00:54:01]} {[%emt 00:01:11]} c6 {[%clk 00:55:18]} {[%emt
00:00:09]} 2. Nf3 {[%clk 00:53:55]} {[%emt 00:00:17]} d5 {[%clk 00:55:22]}
{[%emt 00:00:05]} 3. Nc3 {[%clk 00:54:01]} {[%emt 00:00:04]} Nf6 {[%clk
00:54:47]} {[%emt 00:00:45]} 4. e5 {[%clk 00:53:56]} {[%emt 00:00:15]} Ne4
{[%clk 00:54:53]} {[%emt 00:00:03]} 5. Ne2 {[%clk 00:53:51]} {[%emt 00:00:15]}
Qb6 {[%clk 00:54:59]} {[%emt 00:00:04]} 6. d4 {[%clk 00:53:57]} {[%emt
00:00:04]} e6 {[%clk 00:55:05]} {[%emt 00:00:04]} 7. Ng3 {[%emt 00:00:33]} c5
{[%clk 00:55:10]} 8. Bd3 {[%clk 00:53:02]} {[%emt 00:00:46]} Nxg3 {[%clk
00:55:15]} {[%emt 00:00:04]} 9. fxg3 {[%clk 00:52:47]} {[%emt 00:00:26]} Nc6
{[%clk 00:55:20]} {[%emt 00:00:04]} 10. O-O {[%clk 00:52:28]} {[%emt 00:00:30]}
cxd4 {[%clk 00:53:41]} {[%emt 00:01:50]} 11. Qe2 {[%clk 00:51:35]} {[%emt
00:01:02]} h6 {[%clk 00:49:12]} {[%emt 00:04:39]} 12. a3 {[%clk 00:51:33]}
{[%emt 00:00:12]} Be7 {[%clk 00:48:37]} {[%emt 00:00:45]} 13. b4 {[%clk
00:50:28]} {[%emt 00:01:15]} Bd7 {[%clk 00:46:56]} {[%emt 00:01:50]} 14. Bb2
{[%clk 00:47:56]} {[%emt 00:02:42]} O-O {[%clk 00:44:41]} {[%emt 00:02:25]} 15.
Kh1 {[%clk 00:41:14]} {[%emt 00:06:52]} Rac8 {[%clk 00:43:19]} {[%emt
00:01:32]} 16. Rae1 {[%clk 00:34:10]} {[%emt 00:07:14]} f5 {[%clk 00:39:43]}
{[%emt 00:03:46]} 17. Qf2 {[%clk 00:29:15]} {[%emt 00:05:05]} Kh8 {[%clk
00:34:21]} {[%emt 00:05:32]} 18. Nxd4 {[%clk 00:28:30]} {[%emt 00:00:55]} a5
{[%clk 00:34:06]} {[%emt 00:00:24]} 19. Nxc6 {[%clk 00:24:49]} {[%emt
00:03:51]} Qxf2 {[%clk 00:33:20]} {[%emt 00:00:55]} 20. Rxf2 {[%clk 00:24:56]}
{[%emt 00:00:04]} bxc6 {[%clk 00:32:03]} {[%emt 00:01:27]} 21. bxa5 {[%clk
00:20:55]} {[%emt 00:04:11]} Ra8 {[%clk 00:31:02]} {[%emt 00:01:11]} 22. Bc3
{[%clk 00:20:35]} {[%emt 00:00:30]} Bxa3 {[%clk 00:29:27]} {[%emt 00:01:45]} 23.
Ra1 {[%clk 00:18:48]} {[%emt 00:01:57]} Be7 {[%clk 00:27:19]} {[%emt 00:02:17]}
24. Bd2 {[%clk 00:18:20]} {[%emt 00:00:38]} Rfb8 {[%clk 00:25:27]} {[%emt
00:02:03]} 25. Rff1 {[%clk 00:17:34]} {[%emt 00:00:56]} Bd8 {[%clk 00:24:41]}
{[%emt 00:00:55]} 26. g4 {[%clk 00:16:41]} {[%emt 00:01:03]} Kg8 {[%clk
00:19:44]} {[%emt 00:05:07]} 27. gxf5 {[%clk 00:16:31]} {[%emt 00:00:21]} exf5
{[%clk 00:19:49]} {[%emt 00:00:04]} 28. a6 {[%clk 00:11:56]} {[%emt 00:04:46]}
Bc7 {[%clk 00:17:11]} {[%emt 00:02:47]} 29. Bc3 {[%clk 00:10:09]} {[%emt
00:01:57]} c5 {[%clk 00:16:16]} {[%emt 00:01:06]} 30. Bxf5 {[%clk 00:08:40]}
{[%emt 00:01:39]} Bxf5 {[%clk 00:15:58]} {[%emt 00:00:27]} 31. Rxf5 {[%clk
00:08:43]} {[%emt 00:00:07]} Rxa6 {[%clk 00:15:57]} {[%emt 00:00:12]} 32. Rd1
{[%clk 00:06:47]} {[%emt 00:02:05]} d4 {[%clk 00:13:51]} {[%emt 00:02:15]} 33.
Be1 {[%clk 00:06:33]} {[%emt 00:00:24]} g6 {[%clk 00:12:52]} {[%emt 00:01:09]}
34. Rf3 {[%clk 00:05:16]} {[%emt 00:01:26]} Bxe5 {[%clk 00:12:48]} {[%emt
00:00:14]} 35. c3 {[%clk 00:04:45]} {[%emt 00:00:42]} Rf8 {[%clk 00:11:09]}
{[%emt 00:01:48]} 36. cxd4 {[%clk 00:04:39]} {[%emt 00:00:16]} Rxf3 {[%clk
00:10:39]} {[%emt 00:00:39]} 37. gxf3 {[%clk 00:04:45]} {[%emt 00:00:03]} Bxd4
{[%clk 00:10:06]} {[%emt 00:00:44]} 38. Kg2 {[%clk 00:04:54]} Kf7 {[%clk
00:09:27]} {[%emt 00:00:50]} 39. Bg3 {[%clk 00:04:23]} {[%emt 00:00:41]} Ke6
{[%clk 00:08:25]} {[%emt 00:01:12]} 40. Bf4 {[%clk 00:03:58]} {[%emt 00:00:35]}
g5 {[%clk 00:05:53]} {[%emt 00:02:42]} 41. Bb8 {[%clk 00:03:17]} {[%emt
00:00:51]} Kd5 {[%clk 00:02:57]} {[%emt 00:03:07]} 42. f4 {[%clk 00:03:02]}
{[%emt 00:00:25]} c4 {[%clk 00:03:03]} {[%emt 00:00:04]} 43. fxg5 {[%clk
00:03:07]} {[%emt 00:00:05]} hxg5 {[%clk 00:03:11]} 44. Bc7 {[%clk 00:02:47]}
{[%emt 00:00:31]} c3 {[%clk 00:03:00]} {[%emt 00:00:21]} 45. Bd8 {[%clk
00:02:37]} {[%emt 00:00:20]} c2 {[%clk 00:02:06]} {[%emt 00:01:04]} 46. Rc1
{[%clk 00:02:43]} {[%emt 00:00:05]} Rc6 {[%clk 00:01:53]} {[%emt 00:00:22]} 47.
Bxg5 {[%clk 00:02:45]} {[%emt 00:00:08]} Bb2 {[%clk 00:01:55]} {[%emt
00:00:09]} 48. Rf1 {[%clk 00:02:53]} Rg6 {[%clk 00:01:55]} {[%emt 00:00:10]} 49.
h4 {[%clk 00:02:54]} {[%emt 00:00:09]} c1=Q {[%clk 00:01:54]} {[%emt 00:00:11]}
50. Rxc1 {[%clk 00:03:01]} {[%emt 00:00:03]} Bxc1 {[%clk 00:02:03]} 0-1

[Event "NK ABC Kwalificatie 2"]
[Site "Zoetermeer, Netherlands"]
[Date "2025.01.04"]
[Round "3.3"]
[White "Mastop, Guido"]
[Black "Snijders, Take"]
[Result "0-1"]
[TimeControl "55+10"]
[WhiteFideId "8879915"]
[BlackFideId "8935927"]
[WhiteElo "1686"]
[BlackElo "2119"]

1. f4 {[%clk 00:54:39]} {[%emt 00:00:41]} d5 {[%clk 00:55:01]} {[%emt
00:00:19]} 2. Nf3 {[%clk 00:54:05]} {[%emt 00:00:44]} Nf6 {[%clk 00:54:51]}
{[%emt 00:00:19]} 3. b3 {[%clk 00:54:07]} {[%emt 00:00:09]} Bf5 {[%clk
00:54:30]} {[%emt 00:00:31]} 4. Bb2 {[%clk 00:53:43]} {[%emt 00:00:34]} e6
{[%clk 00:54:34]} {[%emt 00:00:05]} 5. e3 {[%clk 00:53:29]} {[%emt 00:00:25]}
Be7 {[%clk 00:54:03]} {[%emt 00:00:41]} 6. h3 {[%clk 00:52:36]} {[%emt
00:01:02]} Ne4 {[%clk 00:49:19]} {[%emt 00:04:54]} 7. h4 {[%clk 00:46:04]}
{[%emt 00:06:43]} Bg4 {[%clk 00:44:36]} {[%emt 00:04:53]} 8. d3 {[%clk
00:41:28]} {[%emt 00:04:46]} Bxh4+ {[%clk 00:34:34]} {[%emt 00:10:11]} 9. Rxh4
{[%clk 00:41:14]} {[%emt 00:00:25]} Bxf3 {[%clk 00:34:09]} {[%emt 00:00:35]} 10.
Rxh7 {[%clk 00:41:03]} {[%emt 00:00:20]} Rxh7 {[%clk 00:32:43]} {[%emt
00:01:37]} 11. Qxf3 {[%clk 00:41:07]} {[%emt 00:00:06]} Qh4+ {[%clk 00:30:49]}
{[%emt 00:02:04]} 12. Kd1 {[%clk 00:40:49]} {[%emt 00:00:28]} Ng3 {[%clk
00:30:05]} {[%emt 00:00:54]} 13. Nd2 {[%clk 00:40:14]} {[%emt 00:00:45]} Nc6
{[%clk 00:29:11]} {[%emt 00:01:05]} 14. c4 {[%clk 00:36:02]} {[%emt 00:04:22]}
O-O-O {[%clk 00:26:46]} {[%emt 00:02:34]} 15. d4 {[%clk 00:28:12]} {[%emt
00:08:00]} Nxf1 {[%clk 00:24:49]} {[%emt 00:02:07]} 16. Qxf1 {[%clk 00:26:50]}
{[%emt 00:01:31]} Qg4+ {[%clk 00:24:04]} {[%emt 00:00:56]} 17. Qf3 {[%clk
00:26:18]} {[%emt 00:00:42]} Rh1+ {[%clk 00:23:40]} {[%emt 00:00:34]} 18. Ke2
{[%clk 00:26:26]} {[%emt 00:00:01]} Qh4 {[%clk 00:21:05]} {[%emt 00:02:45]} 19.
Qf2 {[%clk 00:24:33]} {[%emt 00:02:04]} Rh8 {[%clk 00:19:00]} {[%emt 00:02:15]}
20. Qxh4 {[%clk 00:23:36]} {[%emt 00:01:06]} R8xh4 {[%clk 00:18:44]} {[%emt
00:00:27]} 21. Rxh1 {[%clk 00:23:36]} {[%emt 00:00:10]} Rxh1 {[%clk 00:18:48]}
{[%emt 00:00:07]} 22. a3 {[%clk 00:23:42]} {[%emt 00:00:04]} Ne7 {[%clk
00:17:04]} {[%emt 00:01:54]} 23. Kf3 {[%clk 00:22:02]} {[%emt 00:01:50]} c6
{[%clk 00:16:36]} {[%emt 00:00:38]} 24. Bc3 {[%clk 00:21:13]} {[%emt 00:00:58]}
Rc1 {[%clk 00:14:56]} {[%emt 00:01:50]} 25. Bb4 {[%clk 00:21:02]} {[%emt
00:00:22]} Kd7 {[%clk 00:14:53]} {[%emt 00:00:13]} 26. g4 {[%clk 00:18:19]}
{[%emt 00:02:52]} b6 {[%clk 00:14:04]} {[%emt 00:01:00]} 27. e4 {[%clk
00:15:30]} {[%emt 00:02:59]} a5 {[%clk 00:12:59]} {[%emt 00:01:14]} 28. Bxe7
{[%clk 00:15:29]} {[%emt 00:00:10]} Kxe7 {[%clk 00:13:08]} {[%emt 00:00:02]} 29.
cxd5 {[%clk 00:12:44]} {[%emt 00:02:55]} exd5 {[%clk 00:13:00]} {[%emt
00:00:18]} 30. exd5 {[%clk 00:11:51]} {[%emt 00:01:03]} cxd5 {[%clk 00:13:08]}
{[%emt 00:00:01]} 31. a4 {[%clk 00:08:23]} {[%emt 00:03:39]} Rc3+ {[%clk
00:13:05]} {[%emt 00:00:13]} 32. Ke2 {[%clk 00:08:21]} {[%emt 00:00:12]} Kd6
{[%clk 00:12:28]} {[%emt 00:00:47]} 33. g5 {[%clk 00:08:02]} {[%emt 00:00:29]}
Ke6 {[%clk 00:11:52]} {[%emt 00:00:45]} 0-1

[Event "NK ABC Kwalificatie 2"]
[Site "Zoetermeer, Netherlands"]
[Date "2025.01.04"]
[Round "3.4"]
[White "Krylov, Philippe"]
[Black "Madularea, David"]
[Result "0-1"]
[TimeControl "55+10"]
[WhiteFideId "8776240"]
[BlackFideId "8700494"]
[WhiteElo "2035"]
[BlackElo "2232"]

1. d4 {[%clk 00:54:19]} {[%emt 00:01:00]} Nf6 {[%clk 00:55:12]} {[%emt
00:00:08]} 2. c4 {[%clk 00:54:11]} {[%emt 00:00:18]} b6 {[%clk 00:55:17]}
{[%emt 00:00:05]} 3. Nc3 {[%clk 00:52:23]} {[%emt 00:01:58]} Bb7 {[%clk
00:55:23]} {[%emt 00:00:04]} 4. f3 {[%clk 00:47:11]} {[%emt 00:05:22]} d5
{[%clk 00:55:29]} {[%emt 00:00:05]} 5. cxd5 {[%clk 00:46:53]} {[%emt 00:00:29]}
Nxd5 {[%clk 00:55:33]} {[%emt 00:00:04]} 6. e4 {[%clk 00:44:10]} {[%emt
00:02:53]} Nxc3 {[%clk 00:55:36]} {[%emt 00:00:07]} 7. bxc3 {[%clk 00:44:17]}
{[%emt 00:00:04]} e6 {[%clk 00:54:27]} {[%emt 00:01:19]} 8. Bc4 {[%clk
00:38:22]} {[%emt 00:06:05]} Be7 {[%clk 00:46:48]} {[%emt 00:07:46]} 9. Ne2
{[%clk 00:38:23]} {[%emt 00:00:11]} O-O {[%clk 00:46:28]} {[%emt 00:00:29]} 10.
O-O {[%clk 00:38:24]} {[%emt 00:00:11]} c5 {[%clk 00:45:09]} {[%emt 00:01:28]}
11. Be3 {[%clk 00:36:46]} {[%emt 00:01:49]} Nc6 {[%clk 00:40:27]} {[%emt
00:04:51]} 12. Qd2 {[%clk 00:32:44]} {[%emt 00:04:12]} Rc8 {[%clk 00:37:13]}
{[%emt 00:03:24]} 13. Bb3 {[%clk 00:30:25]} {[%emt 00:02:30]} cxd4 {[%clk
00:33:59]} {[%emt 00:03:24]} 14. cxd4 {[%clk 00:30:20]} {[%emt 00:00:15]} Na5
{[%clk 00:34:00]} {[%emt 00:00:08]} 15. Rfd1 {[%clk 00:28:55]} {[%emt
00:01:35]} Qd7 {[%clk 00:32:53]} {[%emt 00:01:17]} 16. d5 {[%clk 00:24:23]}
{[%emt 00:04:43]} exd5 {[%clk 00:31:58]} {[%emt 00:01:04]} 17. Bxd5 {[%clk
00:24:23]} {[%emt 00:00:10]} Bxd5 {[%clk 00:30:46]} {[%emt 00:01:22]} 18. Qxd5
{[%clk 00:24:26]} {[%emt 00:00:08]} Qa4 {[%clk 00:29:34]} {[%emt 00:01:22]} 19.
Qd7 {[%clk 00:22:23]} {[%emt 00:02:13]} Qa3 {[%clk 00:28:33]} {[%emt 00:01:10]}
20. Bd4 {[%clk 00:19:21]} {[%emt 00:03:13]} Rc2 {[%clk 00:22:21]} {[%emt
00:06:21]} 21. Qg4 {[%clk 00:17:04]} {[%emt 00:02:27]} g6 {[%clk 00:20:28]}
{[%emt 00:02:03]} 22. Ng3 {[%clk 00:15:59]} {[%emt 00:01:15]} Bc5 {[%clk
00:16:38]} {[%emt 00:04:00]} 23. e5 {[%clk 00:14:09]} {[%emt 00:02:00]} Nc6
{[%clk 00:15:55]} {[%emt 00:00:53]} 24. Nf5 {[%clk 00:09:52]} {[%emt 00:04:27]}
Nxd4 {[%clk 00:15:46]} {[%emt 00:00:20]} 25. Nxd4 {[%clk 00:09:26]} {[%emt
00:00:36]} Rc4 {[%clk 00:15:49]} {[%emt 00:00:07]} 26. Kh1 {[%clk 00:05:34]}
{[%emt 00:04:02]} Qa4 {[%clk 00:15:36]} {[%emt 00:00:22]} 27. e6 {[%clk
00:02:24]} {[%emt 00:03:21]} Rxd4 {[%clk 00:15:27]} {[%emt 00:00:19]} 28. exf7+
{[%clk 00:02:14]} {[%emt 00:00:20]} Kg7 {[%clk 00:15:09]} {[%emt 00:00:27]} 29.
Rxd4 {[%clk 00:01:43]} {[%emt 00:00:41]} Qxd4 {[%clk 00:15:12]} {[%emt
00:00:07]} 30. Qxd4+ {[%clk 00:01:47]} {[%emt 00:00:06]} Bxd4 {[%clk 00:15:18]}
{[%emt 00:00:03]} 31. Rd1 {[%clk 00:01:51]} {[%emt 00:00:06]} Bc5 {[%clk
00:15:20]} {[%emt 00:00:08]} 0-1

[Event "NK ABC Kwalificatie 2"]
[Site "Zoetermeer, Netherlands"]
[Date "2025.01.04"]
[Round "3.5"]
[White "Van Batenburg, Mees"]
[Black "Lopes, Samuel"]
[Result "0-1"]
[TimeControl "55+10"]
[WhiteFideId "8762545"]
[BlackFideId "8763414"]
[WhiteElo "2221"]
[BlackElo "1990"]

1. e4 {[%emt 00:00:21]} c5 {[%clk 00:55:11]} 2. Nf3 {[%clk 00:54:32]} {[%emt
00:00:15]} Nc6 {[%clk 00:55:09]} {[%emt 00:00:13]} 3. d4 {[%clk 00:54:38]}
{[%emt 00:00:04]} cxd4 {[%clk 00:55:11]} {[%emt 00:00:09]} 4. Nxd4 {[%clk
00:54:45]} {[%emt 00:00:02]} Nf6 {[%clk 00:55:11]} {[%emt 00:00:11]} 5. Nc3
{[%clk 00:54:50]} {[%emt 00:00:04]} d6 {[%clk 00:55:12]} {[%emt 00:00:09]} 6.
Bg5 {[%clk 00:54:39]} {[%emt 00:00:20]} e6 {[%clk 00:55:14]} {[%emt 00:00:10]}
7. Qd2 {[%clk 00:54:26]} {[%emt 00:00:23]} a6 {[%clk 00:55:09]} {[%emt
00:00:15]} 8. O-O-O {[%clk 00:54:26]} {[%emt 00:00:09]} Be7 {[%clk 00:55:10]}
{[%emt 00:00:10]} 9. Kb1 {[%clk 00:54:19]} {[%emt 00:00:17]} Bd7 {[%clk
00:54:40]} {[%emt 00:00:41]} 10. f3 {[%clk 00:48:06]} {[%emt 00:06:23]} Nxd4
{[%clk 00:50:15]} {[%emt 00:04:35]} 11. Qxd4 {[%clk 00:48:08]} {[%emt
00:00:07]} Qa5 {[%clk 00:50:10]} {[%emt 00:00:16]} 12. h4 {[%clk 00:45:49]}
{[%emt 00:02:28]} h5 {[%clk 00:44:25]} {[%emt 00:05:56]} 13. f4 {[%clk
00:38:38]} {[%emt 00:07:20]} Qc5 {[%clk 00:42:27]} {[%emt 00:02:08]} 14. Qxc5
{[%clk 00:33:15]} {[%emt 00:05:33]} dxc5 {[%clk 00:42:33]} {[%emt 00:00:04]} 15.
Bxf6 {[%clk 00:33:19]} {[%emt 00:00:06]} gxf6 {[%clk 00:41:02]} {[%emt
00:01:41]} 16. Be2 {[%clk 00:32:05]} {[%emt 00:01:24]} O-O-O {[%clk 00:38:29]}
{[%emt 00:02:44]} 17. f5 {[%clk 00:25:39]} {[%emt 00:06:36]} b5 {[%clk
00:29:38]} {[%emt 00:09:00]} 18. Bf3 {[%clk 00:18:55]} {[%emt 00:06:55]} Kc7
{[%clk 00:22:20]} {[%emt 00:07:28]} 19. Rdg1 {[%clk 00:09:47]} {[%emt
00:09:17]} Bc6 {[%clk 00:21:47]} {[%emt 00:00:42]} 20. g4 {[%clk 00:09:21]}
{[%emt 00:00:35]} b4 {[%clk 00:16:57]} {[%emt 00:05:01]} 21. Ne2 {[%clk
00:07:50]} {[%emt 00:01:41]} hxg4 {[%clk 00:16:33]} {[%emt 00:00:35]} 22. Rxg4
{[%clk 00:04:00]} {[%emt 00:04:00]} exf5 {[%clk 00:16:26]} {[%emt 00:00:16]} 23.
Rg7 {[%clk 00:02:54]} {[%emt 00:01:15]} fxe4 {[%clk 00:15:17]} {[%emt
00:01:20]} 24. Bg2 {[%clk 00:01:38]} {[%emt 00:01:27]} Rdg8 {[%clk 00:13:12]}
{[%emt 00:02:14]} 25. Rxf7 {[%clk 00:00:57]} {[%emt 00:00:51]} Rxg2 {[%clk
00:13:06]} {[%emt 00:00:16]} 26. Nf4 {[%clk 00:01:04]} {[%emt 00:00:04]} Rxh4
{[%clk 00:11:22]} {[%emt 00:01:53]} 27. Rxe7+ {[%clk 00:01:12]} {[%emt
00:00:03]} Kd8 {[%clk 00:11:06]} {[%emt 00:00:27]} 28. Rd1+ {[%clk 00:01:15]}
{[%emt 00:00:07]} Kxe7 {[%clk 00:11:04]} {[%emt 00:00:11]} 29. Nxg2 {[%emt
00:00:02]} Rh2 {[%clk 00:10:38]} {[%emt 00:00:34]} 30. Ne3 {[%clk 00:01:31]}
{[%emt 00:00:04]} Ke6 {[%clk 00:09:46]} {[%emt 00:01:02]} 31. Rf1 {[%clk
00:00:16]} {[%emt 00:01:25]} Re2 {[%clk 00:08:15]} {[%emt 00:01:41]} 32. Ng4
{[%clk 00:00:18]} {[%emt 00:00:08]} f5 {[%clk 00:07:48]} {[%emt 00:00:38]} 33.
Nh6 {[%clk 00:00:26]} {[%emt 00:00:02]} f4 {[%clk 00:07:42]} {[%emt 00:00:15]}
34. a3 {[%clk 00:00:29]} {[%emt 00:00:07]} Rh2 {[%clk 00:06:45]} {[%emt
00:01:07]} 35. Ng4 {[%clk 00:00:30]} {[%emt 00:00:09]} Rh4 {[%clk 00:03:09]}
{[%emt 00:03:46]} 36. Rxf4 {[%clk 00:00:24]} {[%emt 00:00:16]} e3 {[%clk
00:02:49]} {[%emt 00:00:30]} 37. Rf6+ {[%clk 00:00:15]} {[%emt 00:00:20]} Ke7
{[%clk 00:02:44]} {[%emt 00:00:15]} 38. Rxc6 {[%clk 00:00:12]} {[%emt
00:00:13]} e2 {[%clk 00:02:45]} {[%emt 00:00:09]} 0-1